fUSD/lending_fUSD_20260512
["ID","MTS","AMOUNT","RATE_DAILY","PERIOD"]
[422085738,1778560239000,-300.00000001,0.00037057,2]
[422085741,1778560239000,-301.67321972,0.00037057,2]
[422085729,1778560239000,-300.0,0.00037057,2]
[422085739,1778560239000,-725.78568352,0.00037057,2]
[422085740,1778560239000,-300.0,0.00037057,2]
[422085756,1778560239000,-1911.66155628,0.00037057,2]
[422085755,1778560239000,-300.0,0.00037057,2]
[422085754,1778560239000,-853.86030012,0.00037057,2]
[422085748,1778560239000,-300.0,0.00037057,2]
[422085751,1778560239000,-300.0,0.00037057,2]
[422085758,1778560239000,-343.84381003,0.00037057,2]
[422085753,1778560239000,-300.0,0.00037057,2]
[422085752,1778560239000,-300.0,0.00037057,2]
[422085743,1778560239000,-300.0,0.00037057,2]
[422085750,1778560239000,-300.0,0.00037057,2]
[422085749,1778560239000,-300.0,0.00037057,2]
[422085745,1778560239000,-300.0,0.00037057,2]
[422085747,1778560239000,-300.45062341,0.00037057,2]
[422085837,1778560240000,-300.0,0.00037057,2]
[422085833,1778560240000,-300.0,0.00037057,2]
[422085843,1778560240000,-300.0,0.00037057,2]
[422085834,1778560240000,-300.0,0.00037057,2]
[422085835,1778560240000,-853.86030012,0.00037057,2]
[422085832,1778560240000,-300.0,0.00037057,2]
[422085842,1778560240000,-300.0,0.00037057,2]
[422085844,1778560240000,-1146.71946024,0.00037057,2]
[422085836,1778560240000,-300.0,0.00037057,2]
[422085829,1778560240000,-300.45062341,0.00037057,2]
[422085823,1778560240000,-893.04482543,0.00037057,2]
[422085841,1778560240000,-526.68525168,0.00037057,2]
[422085840,1778560240000,-343.84381003,0.00037057,2]
[422085857,1778560240000,-576.93890108,0.00037057,2]
[422085839,1778560240000,-300.0,0.00037057,2]
[422085854,1778560240000,-300.0,0.00037057,2]
[422085846,1778560240000,-300.0,0.00037057,2]
[422085855,1778560240000,-463.6616139,0.00037057,2]
[422085856,1778560240000,-300.0,0.00037057,2]
[422085848,1778560240000,-300.0,0.00037057,2]
[422085845,1778560240000,-309.46605895,0.00037057,2]
[422085847,1778560240000,-864.10865205,0.00037057,2]
[422085851,1778560240000,-300.0,0.00037057,2]
[422085850,1778560240000,-300.0,0.00037057,2]
[422085849,1778560240000,-1809.24690158,0.00037057,2]
[422085852,1778560240000,-300.0,0.00037057,2]
[422085853,1778560240000,-310.77293504,0.00037057,2]
[422085827,1778560240000,-300.0,0.00037057,2]
[422085838,1778560240000,-1911.66155628,0.00037057,2]
[422085824,1778560240000,-725.78568352,0.00037057,2]
[422085810,1778560240000,-300.0,0.00037057,2]
[422085831,1778560240000,-300.0,0.00037057,2]
[422085859,1778560240000,-451.72868137,0.00037057,2]
[422085806,1778560240000,-300.0,0.00037057,2]
[422085799,1778560240000,-300.0,0.00037057,2]
[422085798,1778560240000,-300.0,0.00037057,2]
[422085801,1778560240000,-300.0,0.00037057,2]
[422085804,1778560240000,-300.0,0.00037057,2]
[422085805,1778560240000,-300.0,0.00037057,2]
[422085802,1778560240000,-300.0,0.00037057,2]
[422085803,1778560240000,-300.0,0.00037057,2]
[422085800,1778560240000,-300.0,0.00037057,2]
[422085818,1778560240000,-300.0,0.00037057,2]
[422085808,1778560240000,-300.0,0.00037057,2]
[422085812,1778560240000,-300.0,0.00037057,2]
[422085822,1778560240000,-1066.50381929,0.00037057,2]
[422085807,1778560240000,-300.0,0.00037057,2]
[422085811,1778560240000,-492.49408754,0.00037057,2]
[422085816,1778560240000,-604.21547136,0.00037057,2]
[422085815,1778560240000,-300.0,0.00037057,2]
[422085813,1778560240000,-300.0,0.00037057,2]
[422085814,1778560240000,-300.0,0.00037057,2]
[422085817,1778560240000,-300.0,0.00037057,2]
[422085820,1778560240000,-527.54022817,0.00037057,2]
[422085830,1778560240000,-348.36222459,0.00037057,2]
[422085819,1778560240000,-300.0,0.00037057,2]
[422085821,1778560240000,-300.0,0.00037057,2]
[422085826,1778560240000,-301.67321972,0.00037057,2]
[422085825,1778560240000,-300.0,0.00037057,2]
[422085828,1778560240000,-300.0,0.00037057,2]
[422085809,1778560240000,-300.0,0.00037057,2]
[422085858,1778560240000,-300.0,0.00037057,2]
[422085888,1778560240000,-151.0,0.00038329,7]
[422085866,1778560240000,-158.0,0.00037222,120]
[422085890,1778560240000,-2052.4345,0.00038351,2]
[422085923,1778560240000,-5026.19770332,0.00039717,2]
[422085898,1778560240000,-1562.0,0.0003863,30]
[422085897,1778560240000,-2052.4345,0.00038591,2]
[422085908,1778560240000,-3590.48,0.00039123,120]
[422085899,1778560240000,-614.79,0.000387,60]
[422085903,1778560240000,-257.64710553,0.0003904,30]
[422085909,1778560240000,-1562.0,0.00039178,30]
[422085905,1778560240000,-2052.4345,0.0003907,2]
[422085900,1778560240000,-2052.4345,0.00038831,2]
[422085902,1778560240000,-257.64710553,0.0003904,30]
[422085906,1778560240000,-158.0,0.00039083,120]
[422085907,1778560240000,-194.82682534,0.000391,30]
[422085891,1778560240000,-298.82433647,0.00038356,2]
[422085901,1778560240000,-1562.0,0.00038904,30]
[422085910,1778560240000,-1000.0,0.00039281,120]
[422085912,1778560240000,-2052.4345,0.0003931,2]
[422085914,1778560240000,-3590.44,0.00039448,120]
[422085918,1778560240000,-937.0936,0.00039627,30]
[422085916,1778560240000,-2052.4345,0.0003955,2]
[422085911,1778560240000,-310.8023,0.0003931,2]
[422085915,1778560240000,-1562.0,0.00039452,30]
[422085913,1778560240000,-6944.955649,0.00039348,2]
[422085917,1778560240000,-889.93639651,0.00039616,2]
[422085920,1778560240000,-500.0,0.00039671,60]
[422085919,1778560240000,-500.0,0.00039671,60]
[422085921,1778560240000,-3475.35,0.00039712,120]
[422085864,1778560240000,-1000.0,0.00037098,5]
[422085904,1778560240000,-257.64710553,0.0003904,30]
[422085894,1778560240000,-327.0,0.00038567,30]
[422085922,1778560240000,-1253.0001,0.00039716,120]
[422085896,1778560240000,-682.0,0.00038567,30]
[422085869,1778560240000,-151.000007,0.00037463,7]
[422085868,1778560240000,-215.351327,0.00037463,7]
[422085863,1778560240000,-1000.0,0.00037071,5]
[422085860,1778560240000,-300.0,0.00037057,2]
[422085862,1778560240000,-300.0,0.00037057,2]
[422085865,1778560240000,-170.54795026,0.000372,120]
[422085867,1778560240000,-10005.0,0.00037463,7]
[422085861,1778560240000,-300.0,0.00037057,2]
[422085889,1778560240000,-310.8023,0.00038351,2]
[422085870,1778560240000,-215.351327,0.00037463,7]
[422085874,1778560240000,-1505.44740162,0.00037619,5]
[422085879,1778560240000,-181.125,0.00038231,2]
[422085873,1778560240000,-246.469525,0.00037463,7]
[422085878,1778560240000,-3511.36,0.00038231,2]
[422085871,1778560240000,-215.351327,0.00037463,7]
[422085881,1778560240000,-504.0,0.00038298,16]
[422085895,1778560240000,-654.0,0.00038567,30]
[422085880,1778560240000,-3475.35,0.00038242,90]
[422085884,1778560240000,-1446.5,0.00038329,120]
[422085887,1778560240000,-151.0,0.00038329,7]
[422085893,1778560240000,-1168.92,0.000384,14]
[422085886,1778560240000,-2007.5,0.00038329,120]
[422085892,1778560240000,-1562.0,0.00038356,30]
[422085883,1778560240000,-1446.5,0.00038329,120]
[422085876,1778560240000,-151.0,0.00038125,30]
[422085875,1778560240000,-156.38,0.00037863,2]
[422085882,1778560240000,-184.17468888,0.00038304,2]
[422085877,1778560240000,-1228.222,0.00038231,2]
[422085872,1778560240000,-215.351327,0.00037463,7]
[422085885,1778560240000,-2007.5,0.00038329,120]
[422085962,1778560241000,-3166.0,0.0004,30]
[422085967,1778560241000,-816.68,0.0004,120]
[422085961,1778560241000,-3000.0,0.0004,30]
[422085965,1778560241000,-22499.99,0.0004,120]
[422085964,1778560241000,-42219.4983684,0.0004,120]
[422085953,1778560241000,-30223.55,0.00039808,60]
[422085960,1778560241000,-999.0,0.0004,2]
[422085957,1778560241000,-13896.27,0.0004,120]
[422085955,1778560241000,-1248.22701659,0.00039888,14]
[422085952,1778560241000,-759.04,0.00039808,60]
[422085956,1778560241000,-1562.0,0.0004,30]
[422085963,1778560241000,-3000.0,0.0004,30]
[422085971,1778560241000,-400.88,0.0004,120]
[422085982,1778560241000,-500.0,0.0004,120]
[422085970,1778560241000,-22499.96,0.0004,120]
[422085969,1778560241000,-754.88,0.0004,120]
[422085968,1778560241000,-207.13,0.0004,120]
[422085974,1778560241000,-2048.39887577,0.0004,120]
[422085973,1778560241000,-22500.0,0.0004,120]
[422085975,1778560241000,-318.39,0.0004,120]
[422085983,1778560241000,-500.0,0.0004,120]
[422085972,1778560241000,-213.21,0.0004,120]
[422085984,1778560241000,-500.0,0.0004,120]
[422085976,1778560241000,-500.0,0.0004,120]
[422085980,1778560241000,-500.0,0.0004,120]
[422085981,1778560241000,-500.0,0.0004,120]
[422085954,1778560241000,-166.0,0.00039859,11]
[422085966,1778560241000,-17572.44,0.0004,120]
[422085959,1778560241000,-12994.02,0.0004,120]
[422085937,1778560241000,-500.0,0.00039726,15]
[422085951,1778560241000,-50000.0,0.00039808,60]
[422085977,1778560241000,-500.0,0.0004,120]
[422085931,1778560241000,-500.0,0.00039726,15]
[422085933,1778560241000,-500.0,0.00039726,15]
[422085934,1778560241000,-500.0,0.00039726,15]
[422085928,1778560241000,-1562.0,0.00039726,30]
[422085932,1778560241000,-500.0,0.00039726,15]
[422085924,1778560241000,-5000.0,0.00039717,2]
[422085926,1778560241000,-5000.0,0.00039717,2]
[422085930,1778560241000,-500.0,0.00039726,15]
[422085929,1778560241000,-500.0,0.00039726,15]
[422085927,1778560241000,-5000.0,0.00039717,2]
[422085935,1778560241000,-500.0,0.00039726,15]
[422085925,1778560241000,-5000.0,0.00039717,2]
[422085936,1778560241000,-500.0,0.00039726,15]
[422085938,1778560241000,-542.44456415,0.00039726,15]
[422085940,1778560241000,-500.0,0.00039726,15]
[422085939,1778560241000,-500.0,0.00039726,15]
[422085944,1778560241000,-500.0,0.00039726,15]
[422085943,1778560241000,-500.0,0.00039726,15]
[422085946,1778560241000,-300.0,0.00039726,120]
[422085945,1778560241000,-300.0,0.00039726,120]
[422085942,1778560241000,-500.0,0.00039726,15]
[422085947,1778560241000,-300.0,0.00039726,120]
[422085941,1778560241000,-500.0,0.00039726,15]
[422085949,1778560241000,-3590.44,0.00039773,120]
[422085950,1778560241000,-2052.4345,0.0003979,2]
[422085948,1778560241000,-300.0,0.00039726,120]
[422085958,1778560241000,-33990.45368734,0.0004,120]
[422085978,1778560241000,-500.0,0.0004,120]
[422085996,1778560241000,-2987.6011,0.00040062,30]
[422085985,1778560241000,-500.0,0.0004,120]
[422086021,1778560241000,-151.0,0.0004063,30]
[422086020,1778560241000,-161.0,0.000406,120]
[422086014,1778560241000,-144834.56376963,0.000405,30]
[422086024,1778560241000,-454.512502,0.0004063,28]
[422086035,1778560241000,-151.0,0.00040658,30]
[422086034,1778560241000,-151.0,0.00040658,30]
[422086025,1778560241000,-454.512502,0.0004063,28]
[422086023,1778560241000,-454.512502,0.0004063,28]
[422086026,1778560241000,-454.512502,0.0004063,28]
[422086030,1778560241000,-134450.0266246,0.0004063,2]
[422086031,1778560241000,-1149.0524289,0.0004063,2]
[422086027,1778560241000,-63819.1606025,0.0004063,2]
[422085979,1778560241000,-500.0,0.0004,120]
[422086028,1778560241000,-66141.2569801,0.0004063,2]
[422086033,1778560241000,-1444.0,0.00040658,120]
[422086032,1778560241000,-178.99855138,0.00040643,120]
[422086036,1778560241000,-219.362548,0.00040658,30]
[422086037,1778560241000,-151.0,0.00040658,30]
[422086039,1778560241000,-3822.63757246,0.00040713,7]
[422086038,1778560241000,-151.0,0.00040658,30]
[422086046,1778560241000,-3822.63757246,0.00040713,7]
[422086041,1778560241000,-3822.63757246,0.00040713,7]
[422086040,1778560241000,-3822.63757246,0.00040713,7]
[422086042,1778560241000,-3822.63757246,0.00040713,7]
[422086044,1778560241000,-3822.63757246,0.00040713,7]
[422086045,1778560241000,-3822.63757246,0.00040713,7]
[422086043,1778560241000,-3822.63757246,0.00040713,7]
[422086015,1778560241000,-1000.0,0.00040515,120]
[422086022,1778560241000,-151.0,0.0004063,30]
[422086029,1778560241000,-998.5244192,0.0004063,2]
[422086019,1778560241000,-22593.93511509,0.0004059,2]
[422086016,1778560241000,-197.650267,0.00040533,10]
[422085986,1778560241000,-500.0,0.0004,120]
[422085995,1778560241000,-2052.4345,0.00040029,2]
[422085994,1778560241000,-7216.0,0.00040016,120]
[422085990,1778560241000,-5027.373871,0.0004,20]
[422085989,1778560241000,-161.0,0.0004,120]
[422085992,1778560241000,-5027.373871,0.0004,20]
[422085993,1778560241000,-5027.373871,0.0004,20]
[422085988,1778560241000,-218.15135435,0.0004,120]
[422086007,1778560241000,-193.03,0.000403,17]
[422086008,1778560241000,-889.93639649,0.0004035,2]
[422086009,1778560241000,-1483.54939322,0.00040379,120]
[422085998,1778560241000,-717.3645631,0.00040076,2]
[422085991,1778560241000,-5027.373871,0.0004,20]
[422085987,1778560241000,-500.0,0.0004,120]
[422086018,1778560241000,-268.7,0.0004059,120]
[422086002,1778560241000,-191.91529613,0.0004017,2]
[422086017,1778560241000,-1562.0,0.00040548,30]
[422086011,1778560241000,-3590.44,0.00040423,120]
[422086013,1778560241000,-12404.93,0.000405,120]
[422086010,1778560241000,-208.8,0.0004041,120]
[422086012,1778560241000,-170.0,0.000405,120]
[422086005,1778560241000,-1562.0,0.00040274,30]
[422086003,1778560241000,-310.8024,0.00040269,2]
[422086001,1778560241000,-295.58,0.000401,30]
[422086000,1778560241000,-3590.44,0.00040098,120]
[422086004,1778560241000,-2052.4346,0.00040269,2]
[422086006,1778560241000,-1212.72,0.0004029,60]
[422086062,1778560242000,-685.0,0.00040937,5]
[422086068,1778560242000,-160.78967732,0.0004099,30]
[422086064,1778560242000,-167.0,0.00040942,120]
[422086065,1778560242000,-2790.27,0.00040951,2]
[422086067,1778560242000,-610.45996232,0.0004099,20]
[422086070,1778560242000,-527.64434,0.00040996,7]
[422086080,1778560242000,-500.0,0.00040999,30]
[422086072,1778560242000,-527.64434,0.00040996,7]
[422086071,1778560242000,-527.64434,0.00040996,7]
[422086074,1778560242000,-177.88248,0.00040997,120]
[422086075,1778560242000,-500.0,0.00040999,30]
[422086063,1778560242000,-346.0,0.00040937,5]
[422086069,1778560242000,-10000.0,0.00040996,2]
[422086073,1778560242000,-527.64434,0.00040996,7]
[422086048,1778560242000,-3822.63757246,0.00040713,7]
[422086061,1778560242000,-3516.17773268,0.00040902,10]
[422086057,1778560242000,-1562.0,0.00040822,30]
[422086050,1778560242000,-3822.63757246,0.00040713,7]
[422086055,1778560242000,-324.45,0.0004075,120]
[422086054,1778560242000,-3590.44,0.00040748,120]
[422086056,1778560242000,-189.55,0.0004075,120]
[422086052,1778560242000,-2778.80355088,0.00040713,7]
[422086053,1778560242000,-165.30545502,0.00040723,2]
[422086049,1778560242000,-3822.63757246,0.00040713,7]
[422086051,1778560242000,-3822.63757246,0.00040713,7]
[422086059,1778560242000,-165.30545502,0.00040826,2]
[422086058,1778560242000,-633.25538379,0.00040822,5]
[422086047,1778560242000,-3822.63757246,0.00040713,7]
[422086079,1778560242000,-151.0,0.00040999,30]
[422086066,1778560242000,-167.0,0.00040959,120]
[422086077,1778560242000,-151.0,0.00040999,30]
[422086060,1778560242000,-391.03726937,0.00040888,120]
[422086082,1778560242000,-500.0,0.00040999,30]
[422086117,1778560242000,-1081.59853052,0.00026053,2]
[422086116,1778560242000,-250.0,0.00016013,2]
[422086108,1778560242000,-1798.80895522,0.00040999,30]
[422086109,1778560242000,-411048.81605316,0.00041,30]
[422086107,1778560242000,-525.87575945,0.00040999,30]
[422086106,1778560242000,-500.0,0.00040999,30]
[422086105,1778560242000,-500.0,0.00040999,30]
[422086103,1778560242000,-500.0,0.00040999,30]
[422086104,1778560242000,-500.0,0.00040999,30]
[422086101,1778560242000,-159.49748449,0.00040999,30]
[422086100,1778560242000,-500.0,0.00040999,30]
[422086095,1778560242000,-500.0,0.00040999,30]
[422086098,1778560242000,-151.0,0.00040999,30]
[422086094,1778560242000,-151.0,0.00040999,30]
[422086102,1778560242000,-500.0,0.00040999,30]
[422086078,1778560242000,-500.0,0.00040999,30]
[422086099,1778560242000,-500.0,0.00040999,30]
[422086096,1778560242000,-151.0,0.00040999,30]
[422086081,1778560242000,-151.0,0.00040999,30]
[422086085,1778560242000,-151.0,0.00040999,30]
[422086083,1778560242000,-151.0,0.00040999,30]
[422086086,1778560242000,-151.0,0.00040999,30]
[422086084,1778560242000,-532.08476084,0.00040999,30]
[422086090,1778560242000,-156.02794494,0.00040999,30]
[422086087,1778560242000,-500.0,0.00040999,30]
[422086089,1778560242000,-500.0,0.00040999,30]
[422086091,1778560242000,-500.0,0.00040999,30]
[422086093,1778560242000,-500.0,0.00040999,30]
[422086092,1778560242000,-151.0,0.00040999,30]
[422086097,1778560242000,-500.0,0.00040999,30]
[422086088,1778560242000,-152.0,0.00040999,30]
[422086124,1778560243000,-319.37773876,0.00026162,7]
[422086129,1778560243000,-1260.28,0.000263,2]
[422086126,1778560243000,-1260.28,0.00026217,2]
[422086127,1778560243000,-1260.28,0.00026245,7]
[422086125,1778560243000,-1260.28,0.0002619,7]
[422086119,1778560243000,-1260.28,0.0002608,7]
[422086123,1778560243000,-155.06156492,0.00024831,30]
[422086122,1778560243000,-940.90226124,0.00026162,7]
[422086121,1778560243000,-1260.28,0.00026135,2]
[422086120,1778560243000,-1260.28,0.00026107,2]
[422086118,1778560243000,-178.68146948,0.00026053,2]
[422086130,1778560243000,-1260.28,0.00026327,7]
[422086128,1778560243000,-1260.28,0.00026272,2]
[422086131,1778560243000,-1260.28,0.00026355,7]
[422086133,1778560243000,-1260.28,0.0002641,7]
[422086135,1778560243000,-300.0,0.00037057,2]
[422086146,1778560243000,-216.56982052,0.00041,30]
[422086145,1778560243000,-155.06156492,0.00024832,30]
[422086132,1778560243000,-1260.28,0.00026382,2]
[422086143,1778560243000,-1936.07282185,0.00041,30]
[422086140,1778560243000,-327.0,0.00040713,60]
[422086141,1778560243000,-341.0,0.00040713,60]
[422086147,1778560243000,-5497.41496614,0.00041,30]
[422086139,1778560243000,-6944.95564898,0.00040216,2]
[422086142,1778560243000,-868437.32998619,0.00041,30]
[422086138,1778560243000,-1183.78537008,0.00038852,2]
[422086136,1778560243000,-459.54453658,0.00037057,2]
[422086134,1778560243000,-2372.73,0.00035952,10]
[422086137,1778560243000,-300.0,0.00037057,2]
[422086144,1778560243000,-1660.509645,0.00041,30]
[422086148,1778560244000,-509.0,0.0004,30]
[422086150,1778560245000,-326.76095734,0.00024457,2]
[422086151,1778560246000,-698.98608645,0.00024457,2]
[422086152,1778560246000,-320.14047833,0.00024457,2]
[422086155,1778560583000,180.82288763,0.0001,30]
[422086157,1778560688000,1182.50999688,7.945e-05,2]
[422086156,1778560688000,137.97279912,7.945e-05,2]
[422086159,1778561017000,311.46,0.00026208,120]
[422086160,1778561053000,-242.56065845,0.00016395,2]
[422086162,1778561243000,363.95,9.488e-05,2]
[422086166,1778561244000,363.95,0.00011408,2]
[422086163,1778561244000,363.95,9.968e-05,2]
[422086167,1778561244000,363.95,0.00011887,2]
[422086165,1778561244000,363.95,0.00010928,2]
[422086164,1778561244000,363.95,0.00010448,2]
[422086171,1778561245000,363.95,0.00013807,2]
[422086170,1778561245000,363.95,0.00013327,2]
[422086169,1778561245000,363.95,0.00012847,2]
[422086168,1778561245000,363.95,0.00012367,2]
[422086175,1778561246000,363.95,0.00015726,2]
[422086174,1778561246000,363.95,0.00015246,2]
[422086173,1778561246000,363.95,0.00014766,2]
[422086172,1778561246000,363.95,0.00014286,2]
[422086176,1778561247000,363.95,0.00016206,2]
[422086177,1778561337000,250.0,0.00014,2]
[422086178,1778561346000,-581.8,0.00016438,2]
[422086181,1778561346000,-1956.14231269,0.00016558,2]
[422086180,1778561346000,-2500.0,0.00016445,2]
[422086179,1778561346000,-2500.0,0.00016442,2]
[422086182,1778561346000,-150.0,0.00016603,2]
[422086184,1778561346000,-1200.0,0.00016832,2]
[422086185,1778561346000,-363.95,0.00017165,2]
[422086187,1778561346000,-20.20768731,0.0001808,2]
[422086183,1778561346000,-363.95,0.00016685,2]
[422086186,1778561346000,-363.95,0.00017645,2]
[422086193,1778561347000,-2500.0,0.00018082,2]
[422086194,1778561347000,-363.95,0.00018125,2]
[422086192,1778561347000,-2500.0,0.00018082,2]
[422086190,1778561347000,-300.0,0.00018081,2]
[422086191,1778561347000,-300.0,0.00018082,2]
[422086188,1778561347000,-208.79231269,0.0001808,2]
[422086189,1778561347000,-300.0,0.00018081,2]
[422086195,1778561348000,-161.9,0.00018302,2]
[422086196,1778561348000,-581.8,0.0001841,2]
[422086197,1778561348000,-2783.55768731,0.00018417,2]
[422086199,1778561348000,-9068.29231269,0.00018417,2]
[422086200,1778561348000,-931.70768731,0.00018601,2]
[422086198,1778561348000,-10000.0,0.00018417,2]
[422086205,1778561349000,-10000.0,0.00018602,2]
[422086204,1778561349000,-5386.78133933,0.00018602,2]
[422086203,1778561349000,-4243.01,0.00018602,2]
[422086201,1778561349000,-70.20866067,0.00018601,2]
[422086202,1778561349000,-300.0,0.00018601,2]
[422086206,1778561350000,-10000.0,0.00018602,2]
[422086208,1778561351000,-4095.57866067,0.00018602,2]
[422086210,1778561351000,-1000.0,0.00018653,2]
[422086209,1778561351000,-363.95,0.00018605,2]
[422086207,1778561351000,-10000.0,0.00018602,2]
[422086211,1778561351000,-150.6370443,0.00018715,2]
[422086214,1778561351000,-150.17878918,0.00018715,2]
[422086213,1778561351000,-150.0,0.00018715,2]
[422086215,1778561351000,-150.0,0.00018715,2]
[422086212,1778561351000,-150.0,0.00018715,2]
[422086229,1778561352000,-10.34449415,0.0001897,2]
[422086227,1778561352000,-2000.0,0.00018958,2]
[422086228,1778561352000,-139.65550585,0.0001897,2]
[422086226,1778561352000,-150.0,0.00018934,2]
[422086224,1778561352000,-150.0,0.00018888,2]
[422086225,1778561352000,-150.0,0.00018897,2]
[422086222,1778561352000,-150.0,0.00018825,2]
[422086220,1778561352000,-150.0,0.00018752,2]
[422086221,1778561352000,-150.0,0.00018788,2]
[422086219,1778561352000,-150.0,0.00018715,2]
[422086218,1778561352000,-150.0,0.00018715,2]
[422086217,1778561352000,-150.0,0.00018715,2]
[422086216,1778561352000,-150.0,0.00018715,2]
[422086230,1778561352000,-166.66,0.00018974,2]
[422086223,1778561352000,-150.0,0.00018861,2]
[422086231,1778561352000,-154.09,0.00018976,2]
[422086248,1778561352000,-1499.13,0.00019248,2]
[422086234,1778561352000,-500.0,0.00019039,2]
[422086232,1778561352000,-150.0,0.00019007,2]
[422086246,1778561352000,-150.0,0.00019226,4]
[422086247,1778561352000,-150.0,0.00019235,4]
[422086245,1778561352000,-150.0,0.00019189,4]
[422086244,1778561352000,-150.0,0.00019153,2]
[422086242,1778561352000,-150.0,0.00019116,2]
[422086241,1778561352000,-150.0,0.0001908,2]
[422086243,1778561352000,-150.0,0.00019131,2]
[422086238,1778561352000,-150.0,0.00019062,2]
[422086239,1778561352000,-150.0,0.00019062,2]
[422086237,1778561352000,-311.46,0.0001906,2]
[422086236,1778561352000,-175.59,0.00019052,2]
[422086235,1778561352000,-150.0,0.00019043,2]
[422086233,1778561352000,-150.0,0.00019013,2]
[422086240,1778561352000,-150.0,0.00019062,2]
[422086254,1778561353000,-230.37770216,0.000194,2]
[422086249,1778561353000,-150.0,0.00019262,4]
[422086250,1778561353000,-150.0,0.00019299,4]
[422086251,1778561353000,-150.0,0.00019335,4]
[422086252,1778561353000,-150.0,0.00019372,4]
[422086253,1778561353000,-166.66,0.00019373,2]
[422086256,1778561353000,-150.0,0.00019408,4]
[422086255,1778561353000,-150.0,0.00019408,4]
[422086258,1778561353000,-150.0,0.00019408,4]
[422086260,1778561353000,-154.09,0.00019451,2]
[422086259,1778561353000,-150.0,0.00019445,4]
[422086261,1778561353000,-150.0,0.00019481,4]
[422086262,1778561353000,-3000.0,0.000195,10]
[422086263,1778561353000,-166.66,0.00019507,2]
[422086264,1778561353000,-14.93780369,0.00019517,2]
[422086257,1778561353000,-150.0,0.00019408,4]
[422086280,1778561357000,-164.927098,0.00019771,2]
[422086281,1778561357000,-166.66,0.00019773,2]
[422086278,1778561357000,-150.0,0.00019755,4]
[422086276,1778561357000,-150.0,0.00019755,4]
[422086277,1778561357000,-150.0,0.00019755,4]
[422086274,1778561357000,-150.0,0.000197,4]
[422086275,1778561357000,-150.0,0.00019737,4]
[422086270,1778561357000,-150.0,0.00019591,4]
[422086271,1778561357000,-150.0,0.00019627,4]
[422086272,1778561357000,-150.0,0.00019664,4]
[422086268,1778561357000,-150.0,0.00019554,4]
[422086269,1778561357000,-150.0,0.00019582,4]
[422086267,1778561357000,-150.0,0.00019547,4]
[422086266,1778561357000,-150.0,0.00019518,4]
[422086265,1778561357000,-139.32219631,0.00019517,2]
[422086273,1778561357000,-204.003335,0.00019676,2]
[422086282,1778561357000,-150.0,0.00019773,4]
[422086279,1778561357000,-261.912011,0.00019771,2]
[422086283,1778561357000,-150.0,0.0001981,4]
[422086301,1778561357000,-249.0,0.0002,2]
[422086298,1778561357000,-3973.15826169,0.0002,2]
[422086299,1778561357000,-8217.89173831,0.0002,2]
[422086296,1778561357000,-389.0,0.0002,2]
[422086297,1778561357000,-774.0,0.0002,2]
[422086295,1778561357000,-152.0,0.0002,2]
[422086293,1778561357000,-152.0,0.0002,2]
[422086300,1778561357000,-957.97,0.0002,2]
[422086294,1778561357000,-154.0,0.0002,2]
[422086290,1778561357000,-150.0,0.00019963,4]